fUST/lending_fUST_20250220
["ID","MTS","AMOUNT","RATE_DAILY","PERIOD"]
[353754904,1740011445316,-319.0,0.00014231,2]
[353754907,1740011445325,-319.0,0.00014231,2]
[353754910,1740011445334,-319.0,0.00014231,2]
[353754913,1740011445343,-319.0,0.00014231,2]
[353754916,1740011445353,-319.0,0.00014231,2]
[353754919,1740011445364,-319.0,0.00014231,2]
[353754922,1740011445373,-319.0,0.00014231,2]
[353754925,1740011445382,-319.0,0.00014231,2]
[353754928,1740011445391,-319.0,0.00014231,2]
[353754931,1740011445401,-319.0,0.00014231,2]
[353754934,1740011445410,-319.0,0.00014231,2]
[353754937,1740011445419,-319.0,0.00014231,2]
[353754941,1740011445428,-319.0,0.00014231,2]
[353754944,1740011445438,-319.0,0.00014231,2]
[353754948,1740011445447,-319.0,0.00014231,2]
[353754951,1740011445456,-319.0,0.00014231,2]
[353754955,1740011445466,-319.0,0.00014231,2]
[353754958,1740011445475,-319.0,0.00014231,2]
[353754961,1740011445484,-319.0,0.00014231,2]
[353754963,1740011445493,-319.0,0.00014231,2]
[353754966,1740011445503,-319.0,0.00014231,2]
[353754969,1740011445512,-319.0,0.00014231,2]
[353754972,1740011445521,-319.0,0.00014231,2]
[353754975,1740011445530,-319.0,0.00014231,2]
[353754978,1740011445539,-319.0,0.00014231,2]
[353754981,1740011445548,-319.0,0.00014231,2]
[353754984,1740011445557,-319.0,0.00014231,2]
[353754987,1740011445567,-319.0,0.00014231,2]
[353754990,1740011445576,-319.0,0.00014231,2]
[353754993,1740011445585,-319.0,0.00014231,2]
[353754996,1740011445594,-319.0,0.00014231,2]
[353754998,1740011445604,-319.0,0.00014231,2]
[353755000,1740011445613,-319.0,0.00014231,2]
[353755002,1740011445622,-319.0,0.00014231,2]
[353755003,1740011445631,-319.0,0.00014231,2]
[353755005,1740011445640,-319.0,0.00014231,2]
[353755008,1740011445650,-319.0,0.00014231,2]
[353755010,1740011445659,-319.0,0.00014231,2]
[353755013,1740011445668,-319.0,0.00014231,2]
[353755016,1740011445677,-319.0,0.00014231,2]
[353755019,1740011445686,-319.0,0.00014231,2]
[353755022,1740011445695,-319.0,0.00014231,2]
[353755025,1740011445704,-319.0,0.00014231,2]
[353755027,1740011445713,-319.0,0.00014231,2]
[353755029,1740011445722,-319.0,0.00014231,2]
[353755031,1740011445732,-446.0,0.00014231,2]
[353755033,1740011445741,-383.0,0.00014231,2]
[353755035,1740011445751,-383.0,0.00014231,2]
[353755037,1740011445760,-153.0,0.00014232,2]
[353755039,1740011445770,-153.0,0.00014232,2]
[353755041,1740011445779,-153.0,0.00014232,2]
[353755043,1740011445789,-153.0,0.00014232,2]
[353755045,1740011445798,-500.0,0.00014247,2]
[353755047,1740011445807,-500.0,0.00014273,2]
[353755049,1740011445816,-7747.6,0.00014273,2]
[353755051,1740011445826,-500.0,0.00014273,2]
[353755053,1740011445835,-500.0,0.00014273,2]
[353755055,1740011445846,-2749.7,0.00014273,2]
[353755057,1740011445856,-500.0,0.00014273,2]
[353755059,1740011445866,-500.0,0.00014273,2]
[353755061,1740011445876,-500.0,0.00014273,2]
[353755063,1740011445886,-500.0,0.00014273,2]
[353755065,1740011445898,-705.29,0.00014273,2]
[353755066,1740011445908,-1224.07,0.00014273,2]
[353755067,1740011445918,-755.06,0.00014273,2]
[353755069,1740011445929,-500.0,0.00014273,2]
[353755071,1740011445941,-500.0,0.00014273,2]
[353755072,1740011445951,-793.35,0.00014273,2]
[353755073,1740011445961,-500.0,0.00014273,2]
[353755074,1740011445972,-500.0,0.00014273,2]
[353755075,1740011445982,-500.0,0.00014273,2]
[353755076,1740011445992,-500.0,0.00014273,2]
[353755077,1740011446002,-500.0,0.00014273,2]
[353755078,1740011446011,-1111.55,0.00014273,2]
[353755079,1740011446021,-500.0,0.00014273,2]
[353755080,1740011446034,-4472.02,0.00014273,2]
[353755081,1740011446044,-500.0,0.00014273,2]
[353755083,1740011446055,-1083.13,0.00014273,2]
[353755085,1740011446065,-1043.77,0.00014273,2]
[353755087,1740011446075,-673.98,0.00014273,2]
[353755089,1740011446085,-727.83,0.00014273,2]
[353755091,1740011446095,-500.0,0.00014273,2]
[353755093,1740011446105,-500.0,0.00014273,2]
[353755095,1740011446115,-503.77,0.00014273,2]
[353755097,1740011446124,-657.85,0.00014273,2]
[353755099,1740011446134,-151.0,0.000143,2]
[353755101,1740011446144,-645.10229704,0.00014356,2]
[353755103,1740011446154,-7747.6,0.00014356,2]
[353755105,1740011446164,-500.0,0.00014356,2]
[353755107,1740011446174,-500.0,0.00014356,2]
[353755109,1740011446183,-2749.7,0.00014356,2]
[353755111,1740011446193,-500.0,0.00014356,2]
[353755113,1740011446202,-500.0,0.00014356,2]
[353755115,1740011446212,-500.0,0.00014356,2]
[353755117,1740011446221,-500.0,0.00014356,2]
[353755118,1740011446231,-705.29,0.00014356,2]
[353755120,1740011446241,-1224.07,0.00014356,2]
[353755122,1740011446251,-755.06,0.00014356,2]
[353755125,1740011446261,-500.0,0.00014356,2]
[353755126,1740011446270,-500.0,0.00014356,2]
[353755128,1740011446279,-793.35,0.00014356,2]
[353755130,1740011446289,-500.0,0.00014356,2]
[353755132,1740011446299,-500.0,0.00014356,2]
[353755134,1740011446308,-500.0,0.00014356,2]
[353755136,1740011446318,-500.0,0.00014356,2]
[353755138,1740011446327,-500.0,0.00014356,2]
[353755140,1740011446337,-1111.55,0.00014356,2]
[353755142,1740011446346,-500.0,0.00014356,2]
[353755145,1740011446356,-4472.02,0.00014356,2]
[353755147,1740011446366,-500.0,0.00014356,2]
[353755149,1740011446375,-1083.13,0.00014356,2]
[353755151,1740011446385,-1043.77,0.00014356,2]
[353755153,1740011446395,-673.98,0.00014356,2]
[353755155,1740011446404,-727.83,0.00014356,2]
[353755157,1740011446413,-500.0,0.00014356,2]
[353755159,1740011446423,-500.0,0.00014356,2]
[353755161,1740011446433,-503.77,0.00014356,2]
[353755163,1740011446443,-657.85,0.00014356,2]
[353755165,1740011446452,-151.0,0.000144,2]
[353755167,1740011446462,-7747.6,0.00014438,2]
[353755169,1740011446472,-500.0,0.00014438,2]
[353755171,1740011446482,-500.0,0.00014438,2]
[353755173,1740011446492,-2749.7,0.00014438,2]
[353755175,1740011446502,-500.0,0.00014438,2]
[353755177,1740011446512,-500.0,0.00014438,2]
[353755179,1740011446522,-500.0,0.00014438,2]
[353755181,1740011446531,-500.0,0.00014438,2]
[353755183,1740011446540,-705.29,0.00014438,2]
[353755185,1740011446550,-1224.07,0.00014438,2]
[353755187,1740011446561,-755.06,0.00014438,2]
[353755189,1740011446572,-400.7071026,0.00014438,2]
[353755191,1740011446582,-500.0,0.00014438,2]
[353755193,1740011446592,-793.35,0.00014438,2]
[353755195,1740011446603,-600.36,0.00014438,2]
[353755197,1740011446613,-500.0,0.00014438,2]
[353755199,1740011446622,-500.0,0.00014438,2]
[353755201,1740011446632,-500.0,0.00014438,2]
[353755202,1740011446642,-500.0,0.00014438,2]
[353755203,1740011446651,-1111.55,0.00014438,2]
[353755205,1740011446661,-500.0,0.00014438,2]
[353755207,1740011446671,-4472.02,0.00014438,2]
[353755209,1740011446681,-500.0,0.00014438,2]
[353755211,1740011446694,-1083.13,0.00014438,2]
[353755213,1740011446705,-1043.77,0.00014438,2]
[353755215,1740011446715,-673.98,0.00014438,2]
[353755216,1740011446725,-727.83,0.00014438,2]
[353755218,1740011446735,-500.0,0.00014438,2]
[353755220,1740011446744,-500.0,0.00014438,2]
[353755222,1740011446754,-503.77,0.00014438,2]
[353755223,1740011446764,-657.85,0.00014438,2]
[353755224,1740011446774,-557.1188801,0.00014454,2]
[353755225,1740011446784,-557.1188801,0.00014454,2]
[353755226,1740011446793,-557.1188801,0.00014454,2]
[353755227,1740011446804,-557.1188801,0.00014454,2]
[353755228,1740011446813,-557.1188801,0.00014454,2]
[353755229,1740011446824,-557.1188801,0.00014454,2]
[353755230,1740011446834,-557.1188801,0.00014454,2]
[353755231,1740011446844,-557.1188801,0.00014454,2]
[353755232,1740011446854,-557.1188801,0.00014454,2]
[353755233,1740011446864,-557.1188801,0.00014454,2]
[353755234,1740011446874,-1000.000001,0.000145,2]
[353755235,1740011446884,-151.0,0.000145,2]
[353755236,1740011446896,-103360.26767646,0.000145,2]
[353755237,1740011446907,-151.0,0.000145,2]
[353755238,1740011446917,-7747.6,0.0001452,2]
[353755239,1740011446927,-635.21716264,0.0001452,2]
[353755240,1740011446938,-500.0,0.0001452,2]
[353755241,1740011446948,-2749.7,0.0001452,2]
[353755242,1740011446959,-508.51100684,0.0001452,2]
[353755244,1740011446969,-601.32998087,0.0001452,2]
[353755245,1740011446978,-500.0,0.0001452,2]
[353755246,1740011446989,-500.0,0.0001452,2]
[353755247,1740011446999,-705.29,0.0001452,2]
[353755248,1740011447009,-1224.07,0.0001452,2]
[353755249,1740011447019,-755.06,0.0001452,2]
[353755250,1740011447029,-500.0,0.0001452,2]
[353755251,1740011447039,-793.35,0.0001452,2]
[353755252,1740011447049,-500.0,0.0001452,2]
[353755253,1740011447059,-500.0,0.0001452,2]
[353755254,1740011447068,-500.0,0.0001452,2]
[353755255,1740011447078,-500.0,0.0001452,2]
[353755256,1740011447088,-1111.55,0.0001452,2]
[353755257,1740011447098,-500.0,0.0001452,2]
[353755258,1740011447107,-4472.02,0.0001452,2]
[353755259,1740011447118,-500.0,0.0001452,2]
[353755260,1740011447128,-1083.13,0.0001452,2]
[353755261,1740011447138,-1043.77,0.0001452,2]
[353755262,1740011447148,-673.98,0.0001452,2]
[353755263,1740011447157,-727.83,0.0001452,2]
[353755264,1740011447167,-500.0,0.0001452,2]
[353755265,1740011447177,-500.0,0.0001452,2]
[353755266,1740011447188,-503.77,0.0001452,2]
[353755267,1740011447198,-657.85,0.0001452,2]
[353755268,1740011447208,-500.0,0.00014569,2]
[353755269,1740011447217,-356.36826981,0.00014574,2]
[353755270,1740011447227,-151.0,0.000146,2]
[353755271,1740011447238,-2316.5004168,0.00014601,2]
[353755272,1740011447248,-627.264385,0.00014602,2]
[353755273,1740011447258,-627.264385,0.00014602,2]
[353755274,1740011447268,-151.0,0.00014602,2]
[353755275,1740011447278,-388.09662,0.00014602,2]
[353755276,1740011447288,-388.09662,0.00014602,2]
[353755277,1740011447297,-151.0,0.00014602,2]
[353755278,1740011447307,-151.0,0.00014602,2]
[353755279,1740011447317,-151.0,0.00014602,2]
[353755280,1740011447326,-1253.040712,0.00014602,2]
[353755281,1740011447336,-1253.040712,0.00014602,2]
[353755282,1740011447345,-749.756382,0.00014602,2]
[353755283,1740011447354,-749.756382,0.00014602,2]
[353755284,1740011447364,-7747.6,0.00014602,2]
[353755285,1740011447374,-500.0,0.00014602,2]
[353755286,1740011447383,-2749.7,0.00014602,2]
[353755287,1740011447393,-500.0,0.00014602,2]
[353755288,1740011447402,-500.0,0.00014602,2]
[353755289,1740011447411,-705.29,0.00014602,2]
[353755290,1740011447422,-1224.07,0.00014602,2]
[353755291,1740011447431,-755.06,0.00014602,2]
[353755292,1740011447441,-500.0,0.00014602,2]
[353755293,1740011447451,-793.35,0.00014602,2]
[353755294,1740011447461,-500.0,0.00014602,2]
[353755295,1740011447471,-500.0,0.00014602,2]
[353755296,1740011447480,-500.0,0.00014602,2]
[353755297,1740011447490,-500.0,0.00014602,2]
[353755298,1740011447499,-1111.55,0.00014602,2]
[353755299,1740011447508,-500.0,0.00014602,2]
[353755300,1740011447518,-4472.02,0.00014602,2]
[353755301,1740011447527,-500.0,0.00014602,2]
[353755302,1740011447537,-1083.13,0.00014602,2]
[353755303,1740011447547,-1043.77,0.00014602,2]
[353755304,1740011447682,-673.98,0.00014602,2]
[353755305,1740011447692,-727.83,0.00014602,2]
[353755306,1740011447703,-500.0,0.00014602,2]
[353755307,1740011447712,-500.0,0.00014602,2]
[353755308,1740011447722,-503.77,0.00014602,2]
[353755309,1740011447732,-657.85,0.00014602,2]
[353755310,1740011447741,-537.887263,0.00014653,2]
[353755311,1740011447751,-537.887263,0.00014653,2]
[353755312,1740011447761,-151.0,0.00014653,2]
[353755313,1740011447770,-151.0,0.00014653,2]
[353755314,1740011447780,-1155.303409,0.00014653,2]
[353755315,1740011447789,-1155.303409,0.00014653,2]
[353755316,1740011447799,-151.0,0.00014653,2]
[353755317,1740011447809,-151.0,0.00014653,2]
[353755318,1740011447819,-7747.6,0.00014684,2]
[353755319,1740011447830,-500.0,0.00014684,2]
[353755320,1740011447840,-2749.7,0.00014684,2]
[353755321,1740011447850,-500.0,0.00014684,2]
[353755322,1740011447861,-500.0,0.00014684,2]
[353755323,1740011447871,-705.29,0.00014684,2]
[353755324,1740011447881,-1224.07,0.00014684,2]
[353755325,1740011447893,-755.06,0.00014684,2]
[353755326,1740011447903,-500.0,0.00014684,2]
[353755327,1740011447913,-793.35,0.00014684,2]
[353755328,1740011447923,-500.0,0.00014684,2]
[353755329,1740011447935,-500.0,0.00014684,2]
[353755330,1740011447944,-500.0,0.00014684,2]
[353755331,1740011447955,-500.0,0.00014684,2]
[353755332,1740011447965,-1111.55,0.00014684,2]
[353755333,1740011447976,-500.0,0.00014684,2]
[353755334,1740011447986,-4472.02,0.00014684,2]
[353755335,1740011447995,-500.0,0.00014684,2]
[353755336,1740011448005,-1083.13,0.00014684,2]
[353755337,1740011448015,-1043.77,0.00014684,2]
[353755338,1740011448025,-673.98,0.00014684,2]
[353755339,1740011448035,-727.83,0.00014684,2]
[353755340,1740011448045,-166.18799085,0.00014684,2]
[353755341,1740011448055,-500.0,0.00014684,2]
[353755342,1740011448065,-503.77,0.00014684,2]
[353755343,1740011448074,-657.85,0.00014684,2]
[353755344,1740011448084,-13275.53870192,0.00014694,2]
[353755345,1740011448095,-151.0,0.000147,2]
[353755346,1740011448105,-151.0,0.000147,2]
[353755347,1740011448115,-1209.111,0.0001475,2]
[353755348,1740011448124,-172.025,0.0001475,2]
[353755349,1740011448134,-151.0,0.00014767,2]
[353755350,1740011448144,-151.0,0.00014767,2]
[353755351,1740011448155,-151.0,0.00014767,2]
[353755352,1740011448166,-1253.040712,0.00014767,2]
[353755353,1740011448176,-1253.040712,0.00014767,2]
[353755354,1740011448186,-749.756382,0.00014767,2]
[353755355,1740011448197,-749.756382,0.00014767,2]
[353755356,1740011448207,-7747.6,0.00014767,2]
[353755357,1740011448217,-500.0,0.00014767,2]
[353755358,1740011448227,-2749.7,0.00014767,2]
[353755359,1740011448238,-500.0,0.00014767,2]
[353755360,1740011448248,-500.0,0.00014767,2]
[353755361,1740011448258,-705.29,0.00014767,2]
[353755362,1740011448268,-1224.07,0.00014767,2]
[353755363,1740011448279,-755.06,0.00014767,2]
[353755364,1740011448288,-500.0,0.00014767,2]
[353755365,1740011448298,-793.35,0.00014767,2]
[353755366,1740011448308,-500.0,0.00014767,2]
[353755367,1740011448318,-500.0,0.00014767,2]
[353755368,1740011448328,-500.0,0.00014767,2]
[353755369,1740011448337,-500.0,0.00014767,2]
[353755370,1740011448347,-1111.55,0.00014767,2]
[353755371,1740011448358,-500.0,0.00014767,2]
[353755372,1740011448367,-4472.02,0.00014767,2]
[353755373,1740011448376,-500.0,0.00014767,2]
[353755374,1740011448386,-1083.13,0.00014767,2]
[353755375,1740011448395,-1043.77,0.00014767,2]
[353755376,1740011448404,-673.98,0.00014767,2]
[353755377,1740011448415,-727.83,0.00014767,2]
[353755378,1740011448425,-500.0,0.00014767,2]
[353755379,1740011448435,-503.77,0.00014767,2]
[353755380,1740011448445,-657.85,0.00014767,2]
[353755381,1740011448455,-500.0,0.00014773,2]
[353755382,1740011448465,-1000.0,0.00014795,2]
[353755383,1740011448475,-1114.2377602,0.00014795,2]
[353755384,1740011448484,-557.1188801,0.00014795,2]
[353755385,1740011448494,-557.1188801,0.00014795,2]
[353755386,1740011448503,-557.1188801,0.00014795,2]
[353755387,1740011448513,-557.1188801,0.00014795,2]
[353755388,1740011448523,-557.1188801,0.00014795,2]
[353755389,1740011448532,-557.1188801,0.00014795,2]
[353755390,1740011448541,-557.1188801,0.00014795,2]
[353755391,1740011448551,-557.1188801,0.00014795,2]
[353755392,1740011448560,-557.1188801,0.00014795,2]
[353755393,1740011448570,-557.1188801,0.00014795,2]
[353755394,1740011448579,-557.1188801,0.00014795,2]
[353755395,1740011448588,-557.1188801,0.00014795,2]
[353755396,1740011448597,-557.1188801,0.00014795,2]
[353755397,1740011448607,-557.1188801,0.00014795,2]
[353755398,1740011448616,-522.4466952,0.00014795,2]
[353755399,1740011448626,-627.264385,0.000148,2]
[353755400,1740011448635,-627.264385,0.000148,2]
[353755401,1740011448645,-537.887263,0.000148,2]
[353755402,1740011448655,-537.887263,0.000148,2]
[353755403,1740011448666,-151.0,0.000148,2]
[353755404,1740011448676,-151.0,0.000148,2]
[353755405,1740011448686,-388.09662,0.000148,2]
[353755406,1740011448696,-388.09662,0.000148,2]
[353755407,1740011448706,-151.0,0.000148,2]
[353755408,1740011448716,-151.0,0.000148,2]
[353755409,1740011448726,-28380.9397083,0.000148,2]
[353755410,1740011448736,-716.92604047,0.000148,2]
[353755411,1740011448746,-716.92604047,0.000148,2]
[353755412,1740011448756,-716.92604047,0.000148,2]
[353755413,1740011448766,-716.92604047,0.000148,2]
[353755414,1740011448776,-716.92604047,0.000148,2]
[353755415,1740011448786,-716.92604047,0.000148,2]
[353755416,1740011448796,-716.92604047,0.000148,2]
[353755417,1740011448806,-716.92604047,0.000148,2]
[353755418,1740011448815,-716.92604047,0.000148,2]
[353755419,1740011448825,-716.92604047,0.000148,2]
[353755420,1740011448835,-716.92604047,0.000148,2]
[353755421,1740011448845,-716.92604047,0.000148,2]
[353755422,1740011448855,-716.92604047,0.000148,2]
[353755423,1740011448864,-716.92604047,0.000148,2]
[353755424,1740011448874,-716.92604047,0.000148,2]
[353755425,1740011448884,-716.92604047,0.000148,2]
[353755426,1740011448895,-716.92604047,0.000148,2]
[353755427,1740011448906,-716.92604047,0.000148,2]
[353755428,1740011448916,-716.92604047,0.000148,2]
[353755429,1740011448926,-716.92,0.000148,2]
[353755430,1740011448937,-1672.82742775,0.000148,2]
[353755431,1740011448947,-1672.82742775,0.000148,2]
[353755432,1740011448958,-1672.82742775,0.000148,2]
[353755433,1740011448969,-1672.82742775,0.000148,2]
[353755434,1740011448980,-1672.82742775,0.000148,2]
[353755435,1740011448991,-1672.82742775,0.000148,2]
[353755436,1740011449001,-1672.82742775,0.000148,2]
[353755437,1740011449012,-1672.82742775,0.000148,2]
[353755438,1740011449022,-1672.82742775,0.000148,2]
[353755439,1740011449031,-1672.82742775,0.000148,2]
[353755440,1740011449042,-1672.82742775,0.000148,2]
[353755441,1740011449053,-1672.82742775,0.000148,2]
[353755442,1740011449063,-1672.82742775,0.000148,2]
[353755443,1740011449072,-1672.82742775,0.000148,2]
[353755444,1740011449082,-1672.82742775,0.000148,2]
[353755445,1740011449093,-1672.82742775,0.000148,2]
[353755446,1740011449102,-1672.82742775,0.000148,2]
[353755447,1740011449111,-1672.82742775,0.000148,2]
[353755448,1740011449121,-1672.82742775,0.000148,2]
[353755449,1740011449131,-1672.82,0.000148,2]
[353755450,1740011449141,-158.79014089,0.000148,2]
[353755451,1740011449151,-158.79014089,0.000148,2]
[353755452,1740011449161,-158.79014089,0.000148,2]
[353755453,1740011449171,-158.79014089,0.000148,2]
[353755454,1740011449181,-158.79014089,0.000148,2]
[353755455,1740011449191,-158.79014089,0.000148,2]
[353755456,1740011449201,-158.79014089,0.000148,2]
[353755457,1740011449211,-158.79014089,0.000148,2]
[353755458,1740011449221,-158.79014089,0.000148,2]
[353755459,1740011449231,-158.79014089,0.000148,2]
[353755460,1740011449241,-158.79,0.000148,2]
[353755461,1740011449250,-203.7806808,0.000148,2]
[353755462,1740011449260,-203.7806808,0.000148,2]
[353755463,1740011449270,-203.7806808,0.000148,2]
[353755464,1740011449281,-203.7806808,0.000148,2]
[353755465,1740011449290,-203.7806808,0.000148,2]
[353755466,1740011449300,-203.7806808,0.000148,2]
[353755467,1740011449310,-203.7806808,0.000148,2]
[353755468,1740011449320,-203.7806808,0.000148,2]
[353755469,1740011449330,-203.7806808,0.000148,2]
[353755470,1740011449339,-203.7806808,0.000148,2]
[353755471,1740011449349,-203.7806808,0.000148,2]
[353755472,1740011449359,-203.7806808,0.000148,2]
[353755473,1740011449369,-203.7806808,0.000148,2]
[353755474,1740011449379,-203.7806808,0.000148,2]
[353755475,1740011449389,-203.7806808,0.000148,2]
[353755476,1740011449399,-203.7806808,0.000148,2]
[353755477,1740011449409,-203.7806808,0.000148,2]
[353755478,1740011449418,-203.7806808,0.000148,2]
[353755479,1740011449428,-203.7806808,0.000148,2]
[353755480,1740011449438,-203.78,0.000148,2]
[353755481,1740011449447,-151.0,0.000148,2]
[353755482,1740011449457,-2183.14920833,0.00014839,2]
[353755483,1740011449467,-7747.6,0.00014849,2]
[353755484,1740011449478,-451.03188345,0.00014849,2]
[353755485,1740011449488,-2749.7,0.00014849,2]
[353755486,1740011449497,-500.0,0.00014849,2]
[353755487,1740011449507,-500.0,0.00014849,2]
[353755488,1740011449517,-705.29,0.00014849,2]
[353755489,1740011449527,-1224.07,0.00014849,2]
[353755490,1740011449537,-755.06,0.00014849,2]
[353755491,1740011449547,-500.0,0.00014849,2]
[353755492,1740011449557,-793.35,0.00014849,2]
[353755493,1740011449567,-500.0,0.00014849,2]
[353755494,1740011449578,-500.0,0.00014849,2]
[353755495,1740011449587,-500.0,0.00014849,2]
[353755496,1740011449596,-621.33488513,0.00014849,2]
[353755497,1740011449607,-1111.55,0.00014849,2]
[353755498,1740011449617,-329.21833384,0.00014849,2]
[353755499,1740011449628,-4472.02,0.00014849,2]
[353755500,1740011449639,-500.0,0.00014849,2]
[353755501,1740011449648,-1083.13,0.00014849,2]
[353755502,1740011449658,-1043.77,0.00014849,2]
[353755503,1740011449667,-673.98,0.00014849,2]
[353755504,1740011449678,-727.83,0.00014849,2]
[353755505,1740011449688,-382.93546464,0.00014849,2]
[353755506,1740011449698,-503.77,0.00014849,2]
[353755507,1740011449709,-500.0,0.00014873,2]
[353755508,1740011449719,-500.0,0.00014873,2]
[353755509,1740011449729,-1155.303409,0.00014889,2]
[353755510,1740011449738,-1155.303409,0.00014889,2]
[353755511,1740011449748,-151.0,0.00014889,2]
[353755512,1740011449758,-153.977227,0.00014889,2]
[353755513,1740011449767,-201.63348696,0.00014889,2]
[353755514,1740011449777,-204.66108231,0.00014889,2]
[353755515,1740011449786,-166.0,0.00014889,2]
[353755516,1740011449796,-166.0,0.00014889,2]
[353755517,1740011449805,-259.39,0.00014889,2]
[353755518,1740011449815,-314.0,0.00014889,2]
[353755519,1740011449824,-314.0,0.00014889,2]
[353755520,1740011449834,-314.0,0.00014889,2]
[353755521,1740011449843,-314.0,0.00014889,2]
[353755522,1740011449853,-314.0,0.00014889,2]
[353755523,1740011449863,-314.0,0.00014889,2]
[353755524,1740011449872,-349.0,0.00014889,2]
[353755525,1740011449882,-349.0,0.00014889,2]
[353755526,1740011449894,-314.0,0.00014889,2]
[353755527,1740011449906,-349.0,0.00014889,2]
[353755528,1740011449915,-349.0,0.00014889,2]
[353755529,1740011449925,-314.0,0.00014889,2]
[353755530,1740011449936,-217.11643488,0.00014889,2]
[353755531,1740011449946,-314.0,0.00014889,2]
[353755532,1740011449955,-314.0,0.00014889,2]
[353755533,1740011449965,-314.0,0.00014889,2]
[353755534,1740011449977,-314.0,0.00014889,2]
[353755535,1740011449987,-314.0,0.00014889,2]
[353755536,1740011449997,-314.0,0.00014889,2]
[353755537,1740011450007,-314.0,0.00014889,2]
[353755538,1740011450016,-314.0,0.00014889,2]
[353755539,1740011450025,-201.80223506,0.00014889,2]
[353755540,1740011450035,-13098.89525,0.0001489,2]
[353755541,1740011450044,-343.6134656,0.00014899,2]
[353755542,1740011450053,-231457.76126888,0.000149,5]
[353755543,1740011450063,-22138.05467038,0.000149,5]
[353755544,1740011450074,-627.264385,0.000149,2]
[353755545,1740011450083,-627.264385,0.000149,2]
[353755546,1740011450092,-1000.0,0.000149,2]
[353755547,1740011450102,-175.386186,0.000149,2]
[353755548,1740011450112,-537.887263,0.000149,2]
[353755549,1740011450122,-537.887263,0.000149,2]
[353755550,1740011450132,-151.0,0.000149,2]
[353755551,1740011450142,-151.0,0.000149,2]
[353755552,1740011450153,-388.09662,0.000149,2]
[353755553,1740011450163,-1155.303409,0.000149,2]
[353755554,1740011450173,-388.09662,0.000149,2]
[353755555,1740011450183,-1155.303409,0.000149,2]
[353755556,1740011450193,-151.0,0.000149,2]
[353755557,1740011450204,-275.092016,0.000149,2]
[353755558,1740011450214,-151.0,0.000149,2]
[353755559,1740011450224,-151.0,0.000149,2]
[353755560,1740011450233,-1253.040712,0.000149,2]
[353755561,1740011450243,-1253.040712,0.000149,2]
[353755562,1740011450253,-183.232478,0.000149,2]
[353755563,1740011450262,-749.756382,0.000149,2]
[353755564,1740011450271,-749.756382,0.000149,2]
[353755565,1740011450282,-730.449915,0.000149,2]
[353755566,1740011450291,-730.449915,0.000149,2]
[353755567,1740011450300,-789.616638,0.000149,2]
[353755568,1740011450309,-789.616638,0.000149,2]
[353755569,1740011450319,-151.0,0.000149,2]
[353755570,1740011450329,-151.0,0.000149,2]
[353755571,1740011450339,-4040.729746,0.000149,2]
[353755572,1740011450349,-4040.729746,0.000149,2]
[353755573,1740011450359,-807.958279,0.000149,2]
[353755574,1740011450368,-807.958279,0.000149,2]